bitfinex/quotes_BTCUSD_20251117
["timestamp","ask_amount","ask_price","bid_price","bid_amount"]
[1763390199020,0.002,95639.0,95623.0,0.112074]
[1763390199258,0.09596,95691.0,95639.0,0.110074]
[1763390199472,0.66214287,95670.0,95640.0,0.00053439]
[1763390199689,0.00999999,95710.0,95640.0,0.00053439]
[1763390199690,0.002,95679.0,95652.0,0.095074]
[1763390199913,0.002,95679.0,95661.0,0.095074]
[1763390200138,0.002,95679.0,95621.0,0.323]
[1763390200139,0.002,95679.0,95678.0,0.128404]
[1763390200354,0.66214287,95720.0,95690.0,0.093074]
[1763390200575,0.66214287,95730.0,95704.0,0.093074]
[1763390200796,0.66214287,95730.0,95706.0,0.093074]
[1763390201010,0.0225057,95761.0,95707.0,0.00104483]
[1763390201275,0.01083945,95761.0,95730.0,0.093074]
[1763390201494,0.66214287,95750.0,95732.0,0.093074]
[1763390201708,0.01083945,95761.0,95733.0,0.00157847]
[1763390201958,0.01083945,95761.0,95747.0,0.093074]
[1763390202170,0.01083945,95761.0,95748.0,0.00157822]
[1763390202422,0.01083945,95761.0,95757.0,0.093074]
[1763390202688,0.002,95799.0,95746.0,0.04596]
[1763390202689,0.05272152,95798.0,95760.0,0.2]
[1763390202939,0.002,95799.0,95760.0,0.2]
[1763390202940,0.002,95799.0,95760.0,0.00044041]
[1763390203195,0.09596,95798.0,95760.0,0.00044041]
[1763390203423,0.02609685,95797.0,95760.0,0.00044041]
[1763390203645,0.002,95799.0,95760.0,0.00044041]
[1763390203866,0.002,95799.0,95761.0,0.00158158]
[1763390204088,0.002,95799.0,95760.0,0.00044041]
[1763390204314,0.002,95799.0,95760.0,0.2]
[1763390204806,0.002,95799.0,95761.0,0.09147]
[1763390205021,0.002,95799.0,95761.0,0.09348777]
[1763390205268,0.002,95799.0,95761.0,0.09191085]
[1763390205708,0.002,95799.0,95770.0,0.2]
[1763390205924,0.002,95799.0,95761.0,0.09191085]
[1763390206160,0.01999997,95860.0,95762.0,0.09147]
[1763390206392,0.04698,95974.0,95762.0,0.09147]
[1763390206393,0.15053779,95967.0,95870.0,0.00181001]
[1763390206645,0.002,95999.0,95990.0,0.02999997]
[1763390206866,0.09596,95997.0,95990.0,0.00999999]
[1763390207102,0.09596,95997.0,95930.0,0.01]
[1763390207103,0.002,95999.0,95980.0,0.01999998]
[1763390207314,0.002,95999.0,95960.0,0.01999998]
[1763390207315,0.01372186,95996.0,95960.0,0.01999998]
[1763390207531,0.002,95999.0,95960.0,0.02044083]
[1763390207747,0.002,95999.0,95980.0,0.01999998]
[1763390207964,0.002,95999.0,95970.0,0.01999998]
[1763390208183,0.002,95999.0,95980.0,0.01999998]
[1763390208429,0.002,95999.0,95990.0,0.01999998]
[1763390208646,0.002,95999.0,95990.0,0.21999998]
[1763390208851,0.002,95999.0,95991.0,0.04340528]
[1763390209064,0.002,95999.0,95992.0,0.04341874]
[1763390209281,0.002,95999.0,95992.0,0.02257]
[1763390209510,0.002,95999.0,95990.0,0.21999998]
[1763390209511,0.002,95999.0,95991.0,0.04341874]
[1763390209734,0.002,95999.0,95970.0,0.00999999]
[1763390209735,0.002,95999.0,95992.0,0.00044085]
[1763390210185,30.0252,96000.0,95992.0,0.00044085]
[1763390210186,30.00461,96000.0,95992.0,0.00044085]
[1763390210620,0.10932406,95999.0,95992.0,0.00044085]
[1763390210866,0.10932406,95999.0,95914.0,0.00042]
[1763390210867,0.66214287,95960.0,95914.0,0.00042]
[1763390211097,0.66214287,95930.0,95914.0,0.00044129]
[1763390211312,0.09596,95959.0,95914.0,0.00044129]
[1763390211534,0.10932406,95958.0,95914.0,0.00044129]
[1763390211743,0.04341874,95957.0,95910.0,0.01999998]
[1763390211954,0.66214287,95940.0,95911.0,0.01511819]
[1763390212203,0.09596,95956.0,95910.0,0.0204417]
[1763390212424,0.5,96077.0,95910.0,0.0204417]
[1763390212425,0.05266071,96124.0,95970.0,0.01999998]
[1763390212638,0.01310517,95981.0,95950.0,0.01999998]
[1763390212856,0.09596,96008.0,95970.0,0.01999998]
[1763390213073,0.09596,96038.0,95990.0,0.01999998]
[1763390213288,29.99740602,96000.0,95990.0,0.01999998]
[1763390213532,29.99740602,96000.0,95991.0,0.73]
[1763390213533,29.97823023,96000.0,95991.0,0.73]
[1763390213757,29.97326345,96000.0,95990.0,0.2204417]
[1763390214202,29.97326345,96000.0,95990.0,0.00044172]
[1763390214423,29.97326345,96000.0,95970.0,0.01999998]
[1763390214632,29.97371101,96000.0,95950.0,0.01999998]
[1763390214895,0.66214287,95990.0,95950.0,0.01999998]
[1763390215117,0.66214287,95990.0,95940.0,0.2]
[1763390215118,31.02415433,96000.0,95940.0,0.01999998]
[1763390215333,31.02415433,96000.0,95930.0,0.2]
[1763390215334,31.02415433,96000.0,95950.0,0.01999998]
[1763390215545,31.02415433,96000.0,95930.0,0.2]
[1763390215546,0.09208,95999.0,95930.0,0.2]
[1763390215759,0.66214287,95990.0,95940.0,0.01999998]
[1763390215971,0.09208,95999.0,95940.0,0.01999998]
[1763390216187,31.02415433,96000.0,95960.0,0.01999998]
[1763390216403,0.09208,95999.0,95960.0,0.01999998]
[1763390216659,0.41508,95999.0,95950.0,0.01999998]
[1763390217080,0.41508,95998.0,95950.0,0.01999998]
[1763390217287,0.09208,95998.0,95960.0,0.01999998]
[1763390217501,0.66214287,95990.0,95950.0,0.01999998]
[1763390217714,31.02415433,96000.0,95910.0,0.66214287]
[1763390217715,31.02415433,96000.0,95970.0,0.01999998]
[1763390217922,31.6862972,96000.0,95980.0,0.01999998]
[1763390218132,0.66214287,95990.0,95960.0,0.01999998]
[1763390218342,0.323,95989.0,95950.0,0.01999998]
[1763390218559,31.02415433,96000.0,95900.0,0.66214287]
[1763390218560,31.02415433,96000.0,95940.0,0.21999998]
[1763390218766,31.02415433,96000.0,95970.0,0.01999998]
[1763390218986,31.02415433,96000.0,95980.0,0.01999998]
[1763390219407,31.02415433,96000.0,95931.0,0.002]
[1763390219408,31.6862972,96000.0,95931.0,0.002]
[1763390219623,31.6862972,96000.0,95940.0,0.2]
[1763390219831,31.6862972,96000.0,95867.0,0.0254932]
[1763390219832,0.04599,95932.0,95867.0,0.0254932]
[1763390220054,1.05044332,95932.0,95874.0,0.00198]
[1763390220320,1.05044332,95932.0,95851.0,0.0274932]
[1763390220321,1.05044332,95932.0,95860.0,0.2]
[1763390220528,1.05044332,95932.0,95861.0,0.02040591]
[1763390220529,0.323,95909.0,95861.0,0.02040591]
[1763390220743,0.04599,95892.0,95851.0,0.002]
[1763390220970,0.04599,95892.0,95831.0,0.05202771]
[1763390220971,1.82876505,95734.0,95724.0,0.05286428]
[1763390221220,0.01,95900.0,95724.0,0.05286428]
[1763390221221,0.00599999,95850.0,95829.0,0.01]
[1763390221424,1.05044332,95908.0,95859.0,0.00545291]
[1763390221634,1.05044332,95908.0,95885.0,0.323]
[1763390221844,1.05044332,95908.0,95886.0,0.8289]
[1763390222063,1.05044332,95908.0,95859.0,0.00545291]
[1763390222064,1.05044332,95908.0,95890.0,0.2]
[1763390222282,1.05089004,95908.0,95881.0,0.6062]
[1763390222507,1.05089004,95908.0,95861.0,3.271235]
[1763390222726,0.01999998,95900.0,95870.0,0.2]
[1763390222946,0.02599997,95900.0,95859.0,0.00545291]
[1763390223154,0.01999998,95870.0,95859.0,0.00545291]
[1763390223367,0.02599997,95860.0,95809.0,0.00543]
[1763390223582,0.02599997,95860.0,95795.0,0.00543]
[1763390223815,0.41508,95859.0,95852.0,0.00145868]
[1763390224035,0.01999998,95800.0,95770.0,0.2]
[1763390224262,0.00599999,95800.0,95765.0,0.2405]
[1763390224482,0.00599999,95820.0,95780.0,0.66214287]
[1763390224701,0.01999998,95820.0,95780.0,0.00044616]
[1763390224907,0.02599997,95810.0,95780.0,0.00044616]
[1763390225134,0.00599999,95810.0,95781.0,0.00644]
[1763390225356,0.02599997,95800.0,95780.0,0.00044616]
[1763390225573,0.00599999,95790.0,95780.0,0.00044616]
[1763390225779,0.00599999,95800.0,95780.0,0.00688616]
[1763390225991,0.00599999,95800.0,95780.0,0.00044616]
[1763390226206,0.01999998,95800.0,95780.0,0.00044616]
[1763390226456,0.02599997,95800.0,95750.0,0.2]
[1763390226665,0.02599997,95800.0,95772.0,0.1962]
[1763390226666,0.00044616,95800.0,95772.0,0.1962]
[1763390226874,0.09208,95876.0,95791.0,0.323]
[1763390227086,0.002,95879.0,95801.0,3.594235]
[1763390227298,0.002,95879.0,95812.0,0.323]
[1763390227512,0.002,95879.0,95840.0,0.66214287]
[1763390227761,0.002,95879.0,95844.0,0.323]
[1763390227987,0.002,95879.0,95861.0,3.271235]
[1763390228200,0.002,95879.0,95863.0,0.767]
[1763390228407,0.002,95879.0,95864.0,0.323]
[1763390228618,0.01637137,95987.0,95864.0,0.323]
[1763390228619,0.01999998,95880.0,95864.0,0.31294]
[1763390228829,0.01999998,95870.0,95864.0,0.31307164]
[1763390229279,0.66214287,95890.0,95864.0,0.31307164]
[1763390229488,0.01999998,95870.0,95864.0,0.31307164]
[1763390229699,0.0099565,95865.0,95864.0,0.31307164]
[1763390231424,0.1020365,95865.0,95864.0,0.31307164]
[1763390231636,0.46845524,95865.0,95864.0,0.21307164]
[1763390232695,0.0099565,95865.0,95864.0,0.00013164]
[1763390233553,0.0099565,95865.0,95823.0,0.09607]
[1763390233765,0.01999998,95830.0,95823.0,0.00013173]
[1763390235517,70.70983116,95999.0,95823.0,0.00013173]
[1763390235518,0.6482585,95880.0,95823.0,0.00013173]
[1763390235772,0.01999998,95840.0,95823.0,0.09620173]
[1763390236008,0.01999998,95830.0,95823.0,0.09620173]
[1763390236260,0.01999998,95840.0,95823.0,0.09620173]
[1763390236548,0.01999998,95850.0,95823.0,0.09620173]
[1763390236778,0.6482585,95910.0,95824.0,0.9508]
[1763390236979,0.01999998,95880.0,95831.0,0.323]
[1763390237196,0.002,95919.0,95844.0,3.271235]
[1763390237420,0.6482585,95880.0,95844.0,0.06990037]
[1763390237630,0.0977,95918.0,95823.0,0.00013173]
[1763390237631,0.01999998,95870.0,95833.0,0.09006]
[1763390237850,0.002,95919.0,95846.0,3.271235]
[1763390238111,0.002,95919.0,95845.0,0.09006]
[1763390238112,0.002,95919.0,95852.0,3.34113537]
[1763390238320,0.66825848,95860.0,95836.0,0.07048137]
[1763390238535,0.01999998,95860.0,95820.0,0.16054137]
[1763390238740,0.01999998,95830.0,95820.0,0.07048137]
[1763390238953,0.00884178,95824.0,95823.0,0.07048137]
[1763390239161,0.00884178,95824.0,95823.0,0.09006]
[1763390239396,0.00884178,95824.0,95823.0,0.09019173]
[1763390239641,0.01999998,95870.0,95827.0,0.323]
[1763390239851,0.6482585,95920.0,95857.0,0.07052146]
[1763390240058,0.6482585,95920.0,95828.0,0.08729]
[1763390240059,0.01999998,95870.0,95858.0,0.07052146]
[1763390240267,0.01999998,95870.0,95849.0,0.08729]
[1763390240476,0.01999998,95870.0,95813.0,0.17314518]
[1763390240477,0.00999999,95870.0,95859.0,0.08729]
[1763390240719,0.01999998,95870.0,95863.0,0.07052146]
[1763390240935,0.01999998,95870.0,95842.0,0.08729]
[1763390241169,0.01999998,95880.0,95866.0,0.05296815]
[1763390241392,0.01999999,95920.0,95863.0,0.00013173]
[1763390241393,0.01999998,95870.0,95863.0,0.00013173]
[1763390241612,0.6482585,95873.0,95863.0,0.00013173]
[1763390241852,0.00999999,95890.0,95863.0,0.00013173]
[1763390241853,0.01999998,95870.0,95863.0,0.00013173]
[1763390242113,0.01999998,95870.0,95863.0,1.73e-06]
[1763390243488,0.01999998,95880.0,95864.0,0.05301146]
[1763390243713,0.01999998,95870.0,95863.0,1.73e-06]
[1763390246293,0.01999998,95910.0,95899.0,0.01128585]
[1763390246498,0.01999998,95910.0,95902.0,0.08815183]
[1763390246972,0.01999998,95910.0,95895.0,0.08815183]
[1763390247217,0.00244688,95919.0,95891.0,0.08815183]
[1763390247218,0.01999998,95900.0,95891.0,0.08815183]
[1763390247473,0.01999998,95900.0,95879.0,0.12168283]
[1763390247474,0.01999998,95900.0,95885.0,0.08815183]
[1763390247696,0.02606909,95899.0,95891.0,0.05322075]
[1763390247920,0.02606909,95899.0,95890.0,0.00922075]
[1763390248152,0.01999998,95880.0,95870.0,0.08815183]
[1763390248403,0.01999998,95880.0,95858.0,0.08742]
[1763390248404,0.01999998,95900.0,95876.0,0.08815183]
[1763390248823,0.01999998,95900.0,95861.0,0.12168283]
[1763390248824,0.00999999,95900.0,95885.0,0.08815183]
[1763390248825,0.01999998,95910.0,95892.0,0.08815183]
[1763390249177,0.002,95919.0,95850.0,0.2]
[1763390249178,0.002,95919.0,95893.0,0.01201193]
[1763390249402,0.01999998,95940.0,95901.0,0.20854839]
[1763390249617,0.01999998,95940.0,95900.0,0.2]
[1763390249618,0.02604437,95990.0,95958.0,0.03089]
[1763390249901,0.002,95999.0,95959.0,0.09582577]
[1763390250133,0.0260422,95998.0,95960.0,0.08877394]
[1763390250359,0.0260422,95998.0,95959.0,0.09582577]
[1763390250360,0.002,95999.0,95965.0,0.08877394]
[1763390250616,0.002,95999.0,95976.0,0.08877394]
[1763390250798,29.97326345,96000.0,95980.0,0.08877394]
[1763390250799,29.91728345,96000.0,95980.0,0.08877394]
[1763390251043,29.89246345,96000.0,95988.0,0.08877394]
[1763390251294,29.89246345,96000.0,95999.0,0.2083355]
[1763390251540,29.75151812,96000.0,95999.0,3.7856245]
[1763390251790,29.75151812,96000.0,95999.0,4.5086245]
[1763390252002,29.7345552,96000.0,95999.0,4.5086245]
[1763390252220,29.05660657,96000.0,95999.0,4.5186245]
[1763390252433,28.60964617,96000.0,95999.0,4.54904026]
[1763390252661,24.88149291,96000.0,95999.0,4.12830239]
[1763390252871,24.60783436,96000.0,95999.0,4.0407245]
[1763390253115,23.77062813,96000.0,95999.0,4.09898696]
[1763390253320,18.3851358,96000.0,95999.0,1.28265468]
[1763390253532,13.07796027,96000.0,95999.0,1.30749482]
[1763390253784,12.63889089,96000.0,95999.0,6.2538355]
[1763390253996,7.15848476,96000.0,95999.0,1.2538355]
[1763390254210,1.87423114,96000.0,95999.0,1.30485436]
[1763390254413,1.19802631,96000.0,95999.0,1.30017934]
[1763390254620,1.19802631,96000.0,95999.0,1.33031096]
[1763390254621,0.21386324,96000.0,95999.0,1.33031096]
[1763390254856,0.00475008,96010.0,95999.0,1.33031096]
[1763390254857,1e-08,96010.0,96009.0,5.5413138]
[1763390255071,0.6582585,96180.0,96009.0,5.5413138]
[1763390255072,0.02600049,96152.0,96120.0,0.1014561]
[1763390255338,0.02599455,96174.0,96134.0,0.1014561]
[1763390255555,0.01999998,96150.0,96138.0,0.1014561]
[1763390255769,0.01999998,96150.0,96139.0,0.01585059]
[1763390255986,0.01999998,96150.0,96141.0,0.1014561]
[1763390256202,0.01999998,96150.0,96134.0,0.31206]
[1763390256203,0.02044827,96150.0,96135.0,0.1014561]
[1763390256424,0.34900131,96149.0,96135.0,0.1014561]
[1763390256642,0.00847223,96136.0,96135.0,0.0014561]
[1763390256869,0.00847223,96136.0,96134.0,0.24801]
[1763390257088,0.44256509,96135.0,96134.0,0.20505]
[1763390257305,0.46331651,96135.0,96134.0,0.20505]
[1763390257518,0.01499998,96090.0,96077.0,0.09719]
[1763390257734,0.01499998,96090.0,96078.0,0.01359737]
[1763390257951,0.323,96133.0,96057.0,0.01359737]
[1763390257952,0.01499998,96080.0,96057.0,0.01359737]
[1763390258168,0.01499998,96070.0,96038.0,0.04549]
[1763390258391,0.01,96130.0,96038.0,0.04549]
[1763390258392,0.01499998,96080.0,96039.0,0.10970427]
[1763390258627,0.01499998,96090.0,96039.0,0.40956]
[1763390258855,0.01499998,96090.0,96039.0,0.31237]
[1763390258856,0.01499998,96050.0,96039.0,0.31237]
[1763390259097,0.01499998,96070.0,96040.0,0.10970416]
[1763390259324,0.01499998,96070.0,96040.0,0.42207416]
[1763390259538,0.01499998,96070.0,96041.0,0.01043158]
[1763390259751,0.01499998,96100.0,96051.0,0.323]
[1763390260000,0.01499998,96110.0,96053.0,0.245]
[1763390260213,0.01499998,96080.0,96053.0,0.31233]
[1763390260425,0.00044801,96100.0,96054.0,0.1117022]
[1763390260634,0.00044801,96100.0,96063.0,0.01]
[1763390260840,0.7437285,96170.0,96080.0,0.2]
[1763390261044,0.7437285,96170.0,96080.0,0.51224]
[1763390261255,0.01999998,96190.0,96080.0,0.51224]
[1763390261256,0.09547,96165.0,96081.0,0.09719]
[1763390261470,0.00999999,96190.0,96081.0,0.40943]
[1763390261706,0.10546999,96180.0,96081.0,0.40943]
[1763390261915,0.323,96139.0,96081.0,0.31224]
[1763390262132,0.323,96129.0,96081.0,0.31224]
[1763390262341,0.323,96119.0,96081.0,0.31224]
[1763390262559,0.00999999,96160.0,96082.0,0.09719]
[1763390262781,0.6482585,96170.0,96082.0,0.40942]
[1763390262997,0.6482585,96170.0,96083.0,0.323]
[1763390263212,0.6482585,96170.0,96083.0,0.73242]
[1763390263422,0.00999999,96190.0,96090.0,0.2]
[1763390263647,0.04763,96195.0,96100.0,0.2]
[1763390263857,0.001039,96197.0,96120.0,0.2]
[1763390264070,0.001039,96197.0,96110.0,0.2]
[1763390264283,0.001039,96197.0,96120.0,0.51211]
[1763390264500,0.04763,96192.0,96121.0,0.09719]
[1763390264716,0.001039,96197.0,96121.0,0.4093]
[1763390265029,0.001039,96197.0,96130.0,0.2]
[1763390265252,0.001039,96197.0,96160.0,0.2]
[1763390265485,0.001039,96197.0,96160.0,0.31198]
[1763390265707,0.001039,96197.0,96196.0,0.04309]
[1763390265931,0.9623,96200.0,96196.0,0.04309]
[1763390266154,0.9623,96200.0,96196.0,0.35495]
[1763390266373,0.9623,96200.0,96196.0,0.31186]
[1763390266647,0.42716178,96197.0,96196.0,0.31186]
[1763390266872,0.42716178,96197.0,96137.0,0.03743]
[1763390266873,0.09547,96197.0,96137.0,0.03743]
[1763390267095,0.96274829,96200.0,96152.0,0.09719]
[1763390267310,0.09547,96199.0,96137.0,0.03743]
[1763390267524,0.6482585,96180.0,96110.0,0.2]
[1763390267754,0.6482585,96160.0,96137.0,0.31195]
[1763390268003,0.10416178,96172.0,96137.0,0.30354938]
[1763390268004,0.6482585,96140.0,96137.0,0.30354938]
[1763390268243,0.6482585,96140.0,96137.0,0.20354938]
[1763390268244,0.05615637,96138.0,96137.0,0.20354938]
[1763390268454,0.05615637,96138.0,96000.0,0.01999998]
[1763390268455,0.00999999,96110.0,96010.0,0.04549]
[1763390268666,0.00999999,96110.0,96053.0,0.10416178]
[1763390268881,0.00999999,96120.0,96012.0,0.10416178]
[1763390268882,0.6482585,96063.0,96012.0,0.10416178]
[1763390269106,0.323,96074.0,96053.0,0.00044801]
[1763390269314,0.6482585,96070.0,96053.0,0.31277801]
[1763390269544,0.323,96069.0,96053.0,0.31277801]
[1763390269757,0.39635,96069.0,96053.0,0.00044801]
[1763390269967,0.39635,96069.0,96012.0,0.10416178]
[1763390269968,0.00999999,96050.0,96012.0,0.10416178]
[1763390270180,0.6482585,96022.0,96012.0,0.10416178]
[1763390270402,0.01044743,96050.0,96012.0,0.10416178]
[1763390270403,0.00999999,96040.0,96012.0,0.10416178]
[1763390270644,0.00044744,96050.0,96012.0,0.10416178]
[1763390270863,0.00044744,96050.0,96013.0,0.09719]
[1763390271078,0.00044744,96050.0,96013.0,0.31246]
[1763390271314,0.6482585,96040.0,96021.0,0.10416178]
[1763390271521,0.6482585,96023.0,96021.0,0.10416178]
[1763390271739,0.6482585,96031.0,96021.0,0.10416178]
[1763390271954,0.6482585,96040.0,96021.0,0.10416178]
[1763390272167,0.6482585,96040.0,96013.0,0.31246]
[1763390272168,0.323,96039.0,96013.0,0.31246]
[1763390272381,0.6482585,96031.0,96011.0,0.002]
[1763390272671,0.33299999,96030.0,95993.0,0.10416178]
[1763390272903,0.00999999,96010.0,95993.0,0.10416178]
[1763390273124,0.00999999,96010.0,95960.0,0.10456178]
[1763390273125,0.00999999,96000.0,95960.0,0.10456178]
[1763390273336,0.323,96002.0,95960.0,0.10456178]
[1763390273337,0.323,95980.0,95960.0,0.10456178]
[1763390273551,0.07093,96009.0,95960.0,0.10456178]
[1763390273552,0.07093,96001.0,95960.0,0.10456178]
[1763390273763,0.6482585,96000.0,95960.0,0.10456178]
[1763390274175,0.323,96012.0,95971.0,0.00213183]
[1763390274176,0.6482585,95981.0,95971.0,0.00213183]
[1763390274623,0.11853,95980.0,95971.0,0.00213183]
[1763390274843,0.323,95979.0,95971.0,0.00213183]
[1763390275062,0.396,95979.0,95960.0,0.08669361]
[1763390275279,0.073,95978.0,95960.0,0.0868255]
[1763390275494,0.6482585,95970.0,95960.0,0.0868255]
[1763390275718,0.396,95969.0,95960.0,0.0868255]
[1763390276152,0.323,95969.0,95960.0,0.0868255]
[1763390276612,0.323,95969.0,95964.0,0.0993876]
[1763390276830,0.00999999,95940.0,95909.0,0.0993876]
[1763390277060,0.323,95940.0,95931.0,0.00213196]
[1763390277728,0.0333,95968.0,95931.0,0.00213196]
[1763390277948,0.6482585,95941.0,95931.0,0.00213196]
[1763390278176,0.02041557,96010.0,95932.0,0.09087]
[1763390278177,0.04581,95997.0,95932.0,0.09087]
[1763390278418,0.6482585,95960.0,95931.0,0.00213196]
[1763390279081,0.04581,95982.0,95931.0,0.00213196]
[1763390279292,0.6482585,95960.0,95932.0,0.0093002]
[1763390279506,0.323,95959.0,95931.0,0.00213196]
[1763390279930,0.6482585,95941.0,95931.0,0.00213196]
[1763390280158,0.00999999,95930.0,95854.0,0.09087]
[1763390280444,0.0439,95932.0,95891.0,0.0024466]
[1763390280445,0.6482585,95901.0,95891.0,0.0024466]
[1763390280667,0.04177,95948.0,95929.0,0.0993876]
[1763390280887,0.00999999,95960.0,95929.0,0.10932636]
[1763390280888,0.6482585,95960.0,95929.0,0.10932636]
[1763390281123,0.04177,95964.0,95929.0,0.10932636]
[1763390281124,0.6482585,95970.0,95929.0,0.10932636]
[1763390281633,0.09127,95982.0,95929.0,0.10932636]
[1763390281634,0.6482585,95950.0,95929.0,0.0993876]
[1763390281836,0.6482585,95950.0,95929.0,0.09951956]
[1763390281837,0.323,95949.0,95929.0,0.09951956]
[1763390282047,0.3725,95949.0,95929.0,0.09951956]
[1763390282227,0.0495,95948.0,95929.0,0.02151956]
[1763390282690,0.323,95949.0,95929.0,0.02151956]
[1763390282902,0.002,95999.0,95930.0,0.09087]
[1763390283133,0.6482585,95990.0,95931.0,0.01123896]
[1763390283385,0.002,95999.0,95931.0,0.33423896]
[1763390283585,0.002,95999.0,95932.0,0.09087]
[1763390284012,0.002,95999.0,95940.0,0.2]
[1763390284234,0.002,95999.0,95932.0,0.09087]
[1763390284447,0.002,95999.0,95933.0,0.03022409]
[1763390284667,0.323,95959.0,95929.0,0.00013196]
[1763390284874,0.02041991,95970.0,95929.0,0.00013196]
[1763390284875,0.323,95942.0,95929.0,0.00013196]
[1763390285087,0.00293833,95932.0,95929.0,0.00013196]
[1763390285317,0.00288396,95930.0,95929.0,0.00013196]
[1763390285568,0.323,95900.0,95855.0,0.09087]
[1763390285776,0.323,95900.0,95891.0,0.0024466]
[1763390286220,0.05208,95899.0,95891.0,0.0021566]
[1763390286423,0.02346,95919.0,95891.0,0.0021566]
[1763390286868,0.34646,95919.0,95891.0,0.0021566]
[1763390287580,0.323,95919.0,95891.0,0.0021566]
[1763390287802,0.323,95900.0,95891.0,0.0018666]
[1763390288012,0.6482585,95901.0,95891.0,0.0018666]
[1763390288712,0.02346,95935.0,95891.0,0.0018666]
[1763390288918,0.6482585,95940.0,95892.0,0.09087]
[1763390289136,0.6482585,95950.0,95893.0,0.01410666]
[1763390289341,0.6482585,95920.0,95893.0,0.01410666]
[1763390289548,0.02804,95951.0,95892.0,0.07697666]
[1763390289756,0.02804,95951.0,95893.0,0.01271733]
[1763390289757,0.6482585,95930.0,95893.0,0.01271733]
[1763390290194,0.00999999,95950.0,95891.0,0.0018666]
[1763390290195,0.6482585,95920.0,95891.0,0.0018666]
[1763390290422,0.20834697,95994.0,95891.0,0.0018666]
[1763390290649,0.6482585,95920.0,95891.0,0.0018666]
[1763390290864,0.03706,95928.0,95891.0,0.0018666]
[1763390291087,0.00185049,95892.0,95891.0,0.0018666]
[1763390292646,0.03026049,95892.0,95891.0,0.00172401]
[1763390292871,0.00185049,95892.0,95891.0,0.00172401]
[1763390293081,0.00185049,95892.0,95891.0,0.00124083]
[1763390293507,0.00185049,95892.0,95851.0,0.00124095]
[1763390293783,0.72035139,95880.0,95851.0,0.00137306]
[1763390294005,0.72035139,95890.0,95852.0,0.09006804]
[1763390294214,0.72035139,95870.0,95851.0,0.00137306]
[1763390294430,0.72035139,95870.0,95851.0,0.00037312]
[1763390294662,0.36853,95869.0,95851.0,0.00037312]
[1763390294883,0.36853,95869.0,95830.0,0.00025915]
[1763390294884,0.04341874,95868.0,95830.0,0.00025915]
[1763390295093,0.07469874,95868.0,95830.0,0.00039127]
[1763390295306,0.04341874,95839.0,95830.0,0.00039127]
[1763390296552,0.04341874,95837.0,95830.0,0.00039127]
[1763390296771,0.04341874,95809.0,95781.0,0.09806]
[1763390297005,0.04341874,95809.0,95782.0,0.01393313]
[1763390297239,0.04341874,95829.0,95782.0,0.01393313]
[1763390297463,0.0204286,95890.0,95782.0,0.01393313]
[1763390297464,0.04341874,95799.0,95782.0,0.01393313]
[1763390297687,0.323,95845.0,95783.0,0.01254771]
[1763390297916,0.04341874,95819.0,95784.0,0.00681983]
[1763390298156,0.02609113,95818.0,95784.0,0.00681983]
[1763390298402,0.02609085,95819.0,95785.0,0.10956347]
[1763390298624,0.02609085,95819.0,95785.0,0.09806]
[1763390298841,0.72035139,95820.0,95786.0,0.01465973]
[1763390299053,0.02608813,95829.0,95786.0,0.01465973]
[1763390299054,0.72035139,95800.0,95786.0,0.01465973]
[1763390299277,0.03863,95850.0,95787.0,0.1106061]
[1763390299490,0.72035139,95820.0,95787.0,0.09806]
[1763390299707,0.02609085,95819.0,95787.0,0.09806]
[1763390299925,0.01898399,95818.0,95788.0,0.01411304]
[1763390300138,0.04862999,95850.0,95781.0,0.00044616]
[1763390300139,0.72035139,95800.0,95781.0,0.00044616]
[1763390300362,0.01844406,95799.0,95781.0,0.00044616]
[1763390300574,0.02609657,95798.0,95781.0,0.00044616]
[1763390300812,0.01498472,95797.0,95781.0,0.00044616]
[1763390301038,0.03863,95854.0,95782.0,0.09806]
[1763390301266,0.72035139,95820.0,95783.0,0.02135436]
[1763390301556,0.72035139,95800.0,95783.0,0.00985062]
[1763390301776,0.0260963,95799.0,95781.0,0.00044616]
[1763390301984,0.01468922,95799.0,95781.0,0.00044616]
[1763390302222,0.02833,95798.0,95781.0,0.00044616]
[1763390302431,0.00999999,95790.0,95781.0,0.00044616]
[1763390302676,0.02609903,95789.0,95781.0,0.00015616]
[1763390302895,0.05413903,95789.0,95781.0,0.00015616]
[1763390303121,0.02609903,95789.0,95781.0,0.00015616]
[1763390303390,0.02804,95788.0,95781.0,0.00015616]
[1763390303613,0.1554387,95790.0,95781.0,0.00015616]
[1763390303845,0.02609903,95789.0,95781.0,0.00015616]
[1763390304072,0.72035139,95791.0,95766.0,0.04888]
[1763390304306,0.00044654,95791.0,95767.0,0.01516033]
[1763390304523,0.00044654,95791.0,95768.0,0.02156421]
[1763390304742,0.72035139,95790.0,95768.0,0.00640403]
[1763390304965,0.72035139,95790.0,95767.0,0.0126102]
[1763390305195,0.01588873,95789.0,95768.0,0.01261007]
[1763390305420,0.01588873,95789.0,95766.0,0.04888]
[1763390305421,0.72035139,95790.0,95766.0,0.04888]
[1763390305643,0.00044654,95791.0,95766.0,0.04888]
[1763390305862,0.72035139,95780.0,95731.0,0.002]
[1763390306101,0.00044654,95791.0,95731.0,0.002]
[1763390306102,0.04341874,95759.0,95732.0,0.09274]
[1763390306322,0.20871525,95825.0,95733.0,0.02463971]
[1763390306544,0.04341874,95779.0,95734.0,0.01255416]
[1763390306766,0.04341874,95777.0,95735.0,0.10258046]
[1763390306986,0.04341874,95777.0,95735.0,0.09274]
[1763390306987,0.04341874,95759.0,95735.0,0.09274]
[1763390307214,0.04341874,95757.0,95736.0,0.02505211]
[1763390307650,0.02655346,95759.0,95736.0,0.02505211]
[1763390307651,0.00044626,95759.0,95737.0,0.09274]
[1763390307895,0.00044626,95759.0,95731.0,0.002]
[1763390307896,0.04341874,95746.0,95731.0,0.002]
[1763390308122,0.04341874,95744.0,95731.0,0.002]
[1763390308336,0.03697,95758.0,95731.0,0.002]
[1763390308337,0.03697,95773.0,95731.0,0.002]
[1763390308548,0.043865,95759.0,95732.0,0.09274]
[1763390308764,0.04341874,95757.0,95733.0,0.009474]
[1763390308975,0.043865,95759.0,95734.0,0.01255415]
[1763390308976,0.00044626,95759.0,95734.0,0.01255415]
[1763390309217,0.04341874,95755.0,95735.0,0.01412085]
[1763390309437,0.04341874,95744.0,95731.0,0.002]